bitfinex/quotes_ETHUSD_20250804
["timestamp","ask_amount","ask_price","bid_price","bid_amount"]
[1754281910667,31.67911429,3560.3,3560.2,0.4419]
[1754281910873,41.79186636,3560.3,3560.2,0.4419]
[1754281911141,42.79376636,3560.3,3560.2,0.002]
[1754281911408,63.99120101,3560.3,3560.2,0.002]
[1754281911611,67.34304808,3560.3,3560.2,0.002]
[1754281912290,66.89114808,3560.3,3560.2,0.002]
[1754281912488,73.64514808,3560.3,3560.2,0.002]
[1754281912684,49.52631936,3560.3,3560.2,0.4419]
[1754281912889,46.65807229,3560.3,3560.2,0.9255]
[1754281913426,46.17447229,3560.3,3560.2,0.9255]
[1754281913635,45.62447229,3560.3,3560.2,0.9255]
[1754281914471,46.17447229,3560.3,3560.2,0.002]
[1754281914677,46.17447229,3560.3,3560.2,0.4419]
[1754281916407,73.61344808,3560.3,3560.2,0.002]
[1754281916709,73.16154808,3560.3,3560.2,0.002]
[1754281917719,73.61344808,3560.3,3560.2,0.002]
[1754281918195,52.30337143,3560.3,3560.2,0.002]
[1754281918819,73.61344808,3560.3,3560.2,0.002]
[1754281919510,74.05074808,3560.3,3560.2,0.002]
[1754281921279,74.05074808,3560.3,3560.1,1e-08]
[1754281921280,33.31889196,3560.2,3560.1,1e-08]
[1754281921508,41.40823903,3560.2,3560.1,1e-08]
[1754281923983,41.52088503,3560.2,3560.1,1e-08]
[1754281924284,45.98649632,3560.2,3560.1,1e-08]
[1754281927283,40.76539632,3560.2,3560.1,1e-08]
[1754281927482,40.76539632,3560.2,3560.1,0.44980001]
[1754281927483,41.40675032,3560.2,3560.1,0.44980001]
[1754281927996,44.40675032,3560.2,3560.1,0.44980001]
[1754281928193,44.40675032,3560.2,3560.1,0.92180001]
[1754281928704,44.95675032,3560.2,3560.1,0.92180001]
[1754281929016,44.40675032,3560.2,3560.1,0.44980001]
[1754281929325,44.95675032,3560.2,3560.1,0.44980001]
[1754281929914,44.95675032,3560.2,3560.1,1e-08]
[1754281930499,44.95675032,3560.2,3560.1,0.44980001]
[1754281932317,44.95675032,3560.2,3560.1,1e-08]
[1754281932924,45.43755032,3560.2,3560.1,1e-08]
[1754281933117,45.87485032,3560.2,3560.1,1e-08]
[1754281933732,6.35890986,3560.1,3560.0,0.002]
[1754281933947,45.87392922,3560.1,3560.0,0.002]
[1754281934090,46.01472922,3560.1,3560.0,0.002]
[1754281937728,46.12737522,3560.1,3560.0,0.002]
[1754281938427,46.12737522,3560.1,3559.8,0.002]
[1754281938428,33.31912867,3559.9,3559.8,1e-08]
[1754281938631,59.07300532,3559.9,3559.8,1e-08]
[1754281939023,60.10377132,3559.9,3559.8,1e-08]
[1754281940033,61.10591037,3559.9,3559.8,1e-08]
[1754281940334,63.97415744,3559.9,3559.8,1e-08]
[1754281940636,63.53685744,3559.9,3559.8,1e-08]
[1754281941956,63.97415744,3559.9,3559.8,1e-08]
[1754281943644,63.53685744,3559.9,3559.8,1e-08]
[1754281944021,58.75305744,3559.9,3559.8,1e-08]
[1754281944220,63.05605744,3559.9,3559.8,1e-08]
[1754281944429,63.53685744,3559.9,3559.8,1e-08]
[1754281944628,63.53685744,3559.9,3559.0,0.472]
[1754281944629,3.35969908,3559.1,3559.0,0.472]
[1754281944827,37.62276008,3559.1,3559.0,0.9218]
[1754281945027,37.76356008,3559.1,3559.0,0.9218]
[1754281946119,44.51856008,3559.1,3559.0,0.9218]
[1754281947944,44.51856008,3559.1,3559.0,0.4498]
[1754281948106,37.405861,3559.1,3559.0,0.9218]
[1754281948305,41.708861,3559.1,3559.0,0.9218]
[1754281949439,7.4458,3559.1,3559.0,0.9218]
[1754281949642,11.7488,3559.1,3559.0,0.9218]
[1754281952435,6.8958,3559.1,3559.0,0.9218]
[1754281952627,11.1988,3559.1,3559.0,0.9218]
[1754281957419,11.1988,3559.1,3559.0,0.9238]
[1754281960425,4.4438,3559.1,3559.0,0.9238]
[1754281961145,0.1408,3559.1,3559.0,0.9204]
[1754281961454,4.4428,3559.1,3559.0,0.9204]
[1754281962464,0.1408,3559.1,3559.0,0.9204]
[1754281962760,0.1408,3559.4,3559.0,22.23047665]
[1754281962930,4.302,3559.3,3559.1,6.26274225]
[1754281963257,4.302,3559.3,3559.2,0.4531]
[1754281963933,0.1408,3559.7,3559.3,2.8095412]
[1754281964126,4.302,3559.6,3559.4,21.31007665]
[1754281964327,4.302,3559.6,3559.5,0.4531]
[1754281964660,4.302,3559.6,3559.5,0.9217]
[1754281965036,4.302,3559.6,3559.5,1.13641568]
[1754281965653,4.302,3559.6,3559.5,0.9217]
[1754281966138,4.302,3559.6,3559.5,0.4531]
[1754281966470,4.302,3559.6,3559.1,3.0]
[1754281966471,4.302,3559.6,3559.3,0.4531]
[1754281966840,0.1408,3559.4,3559.1,0.4686]
[1754281967040,4.302,3559.3,3559.2,0.4531]
[1754281968072,4.302,3559.3,3559.2,0.9217]
[1754281968639,6.755,3559.8,3559.4,2.80945021]
[1754281968887,4.301,3559.7,3559.5,24.49257089]
[1754281969032,4.301,3559.7,3559.6,0.9217]
[1754281970578,4.301,3559.7,3559.6,0.4531]
[1754281970735,4.4418,3559.7,3559.6,0.4531]
[1754281973665,4.4418,3559.7,3559.3,0.4531]
[1754281973968,4.929,3559.7,3559.4,0.4531]
[1754281974469,0.4872,3559.6,3559.4,0.4531]
[1754281976685,4.4418,3559.7,3559.4,0.4531]
[1754281977175,4.929,3559.7,3559.4,0.4531]
[1754281977378,4.4418,3559.7,3559.5,0.9217]
[1754281977678,4.4418,3559.7,3559.6,0.9217]
[1754281977866,4.4418,3559.7,3559.6,0.4531]
[1754281978067,4.301,3559.7,3559.6,0.9217]
[1754281979175,4.301,3559.7,3559.6,3.73100441]
[1754281979373,4.301,3559.7,3559.6,0.9217]
[1754281979576,4.301,3559.7,3559.6,0.4531]
[1754281979969,4.301,3559.7,3559.6,0.9307]
[1754281982489,4.301,3559.7,3559.6,0.4531]
[1754281983989,4.301,3559.7,3559.4,7.27225617]
[1754281983990,4.301,3559.7,3559.4,3.1408]
[1754281984187,4.7768,3559.7,3559.4,3.1408]
[1754281984383,4.7768,3559.7,3559.4,3.6047]
[1754281984796,0.4758,3559.6,3559.2,3.0]
[1754281985106,0.4758,3559.5,3559.2,3.4639]
[1754281985396,0.4758,3559.5,3559.2,0.4639]
[1754281988264,0.6166,3559.6,3559.3,0.4639]
[1754281988798,0.1408,3559.6,3559.4,0.4639]
[1754281989004,0.1408,3559.6,3559.5,0.4639]
[1754281990007,0.6166,3559.6,3559.3,21.31007665]
[1754281990215,4.301,3559.7,3559.3,21.31007665]
[1754281990376,0.4758,3559.5,3559.3,21.31007665]
[1754281990567,4.9131,3559.7,3559.3,21.31007665]
[1754281990775,0.4758,3559.4,3559.3,21.31007665]
[1754281991636,4.4418,3559.7,3559.1,0.35861321]
[1754281991771,0.9471,3559.4,3559.1,0.21781321]
[1754281991975,0.1408,3559.2,3559.1,0.21781321]
[1754281992490,0.6166,3559.2,3559.1,0.21781321]
[1754281993806,0.6166,3559.2,3559.1,0.002]
[1754281995379,0.1408,3559.2,3559.1,0.002]
[1754281995580,0.1408,3559.2,3559.1,0.4659]
[1754281996913,0.6166,3559.2,3559.1,0.002]
[1754281998122,0.6166,3559.2,3557.7,0.002]
[1754281998123,3.0,3558.8,3557.7,0.002]
[1754281998322,0.55,3558.3,3557.7,0.002]
[1754281998504,26.960061,3558.0,3557.7,0.002]
[1754281998711,36.960061,3557.8,3557.7,0.002]
[1754281998909,32.63903379,3557.8,3557.7,0.002]
[1754281999306,30.77540807,3557.8,3557.7,0.002]
[1754282000219,33.58613379,3557.8,3557.7,0.002]
[1754282000918,30.77540807,3557.8,3557.7,0.002]
[1754282001437,26.960061,3557.0,3556.3,0.002]
[1754282001770,38.035061,3557.0,3556.3,0.002]
[1754282002022,38.982161,3557.0,3556.3,0.002]
[1754282004829,38.993161,3557.0,3556.3,0.002]
[1754282008444,39.133961,3557.0,3556.3,0.002]
[1754282008637,42.00220807,3557.0,3556.3,0.002]
[1754282008841,41.99920807,3557.0,3556.4,0.4776]
[1754282009441,37.19890807,3557.0,3556.4,0.4776]
[1754282009742,37.19890807,3557.0,3556.3,0.4659]
[1754282009743,26.960061,3557.8,3556.9,0.9249]
[1754282009942,4.332,3557.7,3557.0,0.9229]
[1754282010116,10.0,3557.8,3556.9,0.002]
[1754282010117,0.4708,3557.9,3557.1,0.9229]
[1754282010437,4.333,3557.8,3557.2,0.464]
[1754282010810,4.332,3557.7,3557.2,0.464]
[1754282011047,4.332,3557.6,3557.3,0.9229]
[1754282011241,4.332,3557.5,3557.4,0.9229]
[1754282012039,6.757,3558.0,3557.4,0.9229]
[1754282012202,4.331,3557.9,3557.0,0.02811357]
[1754282012408,6.757,3558.0,3557.5,3.7338564]
[1754282012604,6.757,3558.0,3557.6,0.9229]
[1754282012808,4.332,3557.9,3557.8,2.81072572]
[1754282013038,7.1881,3559.3,3557.9,0.9229]
[1754282013240,4.333,3559.0,3558.0,0.9229]
[1754282013418,4.333,3559.0,3558.0,3.0]
[1754282013621,4.333,3559.0,3558.1,0.9229]
[1754282013822,4.333,3559.0,3558.1,0.4589]
[1754282014132,4.333,3559.0,3558.2,0.464]
[1754282014443,5.53219,3559.0,3558.2,0.464]
[1754282014759,6.00299,3559.0,3558.2,0.464]
[1754282015054,5.53219,3559.0,3558.2,0.464]
[1754282015244,0.4708,3558.9,3558.2,0.464]
[1754282019753,0.1408,3558.3,3558.2,0.464]
[1754282020066,4.4678,3558.3,3558.2,0.9229]
[1754282031305,4.4678,3558.3,3558.2,0.464]
[1754282031466,4.4678,3558.3,3558.2,0.9229]
[1754282040212,0.1408,3558.3,3558.0,3.0]
[1754282040409,0.001,3558.7,3558.2,3.74289128]
[1754282040410,0.1408,3558.6,3558.2,3.74289128]
[1754282040579,0.1408,3558.6,3558.1,0.46890488]
[1754282040580,0.001,3558.7,3558.6,5.81009385]
[1754282040785,0.001,3558.7,3558.6,5.95089385]
[1754282041014,0.001,3558.7,3558.6,1.0733]
[1754282041484,0.001,3558.7,3558.6,3.88339385]
[1754282041680,0.001,3558.7,3558.6,6.88339385]
[1754282042506,0.001,3558.7,3558.6,7.02600499]
[1754282042912,4.311,3559.0,3558.6,7.02600499]
[1754282042913,0.4718,3560.5,3559.5,2.80936659]
[1754282043124,4.31,3560.0,3559.7,21.2989855]
[1754282043299,0.1408,3559.9,3559.7,21.2989855]
[1754282043508,0.1408,3559.9,3559.8,3.9325]
[1754282044030,0.1408,3559.9,3559.8,3.4637]
[1754282044212,0.1408,3559.9,3559.8,3.9325]
[1754282044386,4.31,3560.0,3559.8,6.74164658]
[1754282044591,0.9457,3560.5,3560.0,3.0]
[1754282044592,0.4718,3560.5,3560.0,3.0]
[1754282044838,4.311,3560.1,3559.9,0.9325]
[1754282045036,4.311,3560.1,3559.8,5.8372171]
[1754282045244,4.311,3560.1,3559.9,0.9325]
[1754282045386,0.001,3560.0,3559.8,5.80912564]
[1754282045588,0.001,3560.0,3559.9,0.9325]
[1754282045917,0.001,3560.0,3559.8,3.4688]
[1754282046084,0.001,3560.0,3559.8,3.0]
[1754282046890,0.001,3560.0,3559.8,3.67223258]
[1754282047091,0.001,3560.0,3559.9,0.9325]
[1754282047331,4.309,3560.0,3559.9,3.9325]
[1754282048831,4.309,3560.0,3559.9,3.0]
[1754282049495,4.7808,3560.0,3559.9,3.0]
[1754282049905,4.309,3560.0,3559.9,3.0]
[1754282054944,4.7808,3560.0,3559.9,3.0]
[1754282055641,4.309,3560.0,3559.9,3.0]
[1754282057903,4.7808,3560.0,3559.9,3.0]
[1754282058491,4.309,3560.0,3559.9,3.0]
[1754282060575,4.309,3560.0,3559.9,3.9325]
[1754282061148,4.309,3560.0,3559.9,6.74156767]
[1754282061742,4.75418,3560.0,3559.5,3.0]
[1754282062044,4.75418,3560.0,3557.3,0.002]
[1754282062045,3.0,3557.4,3557.3,0.002]
[1754282062244,26.39008255,3556.1,3555.8,0.48364398]
[1754282062443,26.39008255,3555.9,3555.8,0.01994398]
[1754282062701,26.39008255,3556.1,3555.9,0.4688]
[1754282062860,26.39008255,3556.1,3556.0,0.90507097]
[1754282063061,26.39008255,3556.2,3556.0,1.36877097]
[1754282063264,26.39008255,3556.2,3556.1,0.9325]
[1754282066081,26.39008255,3556.2,3556.1,0.4688]
[1754282066385,26.39008255,3556.2,3556.1,0.9325]
[1754282067948,26.39008255,3556.2,3556.1,3.9325]
[1754282068145,26.39008255,3556.2,3556.1,0.9325]
[1754282069784,26.39008255,3556.2,3556.1,4.44652984]
[1754282069989,26.39008255,3556.2,3556.1,4.63446044]
[1754282070483,26.39008255,3556.2,3556.1,7.44651443]
[1754282070658,4.487,3556.3,3556.2,2.81192994]
[1754282070864,26.39008255,3556.3,3556.2,6.73952994]
[1754282071083,30.87708255,3556.3,3556.2,7.91536488]
[1754282072660,26.39008255,3556.3,3556.2,7.91536488]
[1754282072854,30.87608255,3556.4,3556.3,5.81184259]
[1754282073058,30.87608255,3556.4,3556.3,6.73944259]
[1754282073358,30.87608255,3556.4,3556.3,3.9276]
[1754282075088,30.87608255,3556.4,3556.3,6.73951125]
[1754282077196,26.39008255,3556.4,3556.3,6.73951125]
[1754282077379,30.86808255,3556.4,3556.3,6.73951125]
[1754282079172,26.39008255,3556.4,3556.3,6.73951125]
[1754282080386,26.53088255,3557.0,3556.9,5.81141107]
[1754282080556,30.99788255,3557.0,3556.9,5.81141107]
[1754282080957,25.50757632,3557.0,3556.9,5.81141107]
[1754282082288,25.50757632,3557.0,3556.7,3.26619407]
[1754282082289,20.89977632,3556.9,3556.8,5.81149594]
[1754282083893,20.89977632,3556.9,3556.8,3.0]
[1754282094299,20.89977632,3556.9,3556.8,3.4546]
[1754282094502,25.34077632,3556.9,3556.8,3.9276]
[1754282099697,25.34077632,3556.9,3556.8,3.4546]
[1754282100976,20.89977632,3556.9,3556.8,3.4546]
[1754282101175,25.32877632,3556.9,3556.8,3.4546]
[1754282102175,25.32877632,3556.9,3556.8,3.0]
[1754282103277,4.426,3556.9,3556.8,3.4822]
[1754282103610,22.91951506,3556.9,3556.8,3.4822]
[1754282104010,17.28888443,3556.9,3556.8,3.4822]
[1754282104510,17.28888443,3556.9,3556.8,6.29371596]
[1754282104812,17.28888443,3556.9,3556.8,3.4822]
[1754282107627,17.28888443,3556.9,3556.8,3.0]
[1754282107913,18.22618443,3556.9,3556.8,3.0]
[1754282111112,18.22618443,3556.9,3556.8,3.002]
[1754282112795,18.22618443,3556.9,3556.8,0.002]
[1754282113007,17.85228443,3556.9,3556.8,0.002]
[1754282113495,17.42968443,3556.9,3556.8,0.002]
[1754282117924,17.41068443,3556.9,3556.8,0.9479]
[1754282120600,17.41068443,3556.9,3556.8,0.4842]
[1754282121425,17.41068443,3556.9,3556.8,0.002]
[1754282122340,17.41068443,3556.9,3556.8,3.75941596]
[1754282122341,17.26088443,3556.9,3556.8,3.75941596]
[1754282123403,12.86288443,3556.9,3556.8,6.75941596]
[1754282123599,17.25988443,3556.9,3556.8,6.90021596]
[1754282123802,12.86288443,3556.9,3556.8,6.90021596]
[1754282133373,12.86388443,3556.9,3556.8,6.90021596]
[1754282134856,12.86388443,3556.9,3556.8,28.21134891]
[1754282137247,12.86388443,3556.9,3556.8,24.45393295]
[1754282137453,12.86388443,3556.9,3556.8,24.31313295]
[1754282139079,12.86388443,3556.9,3556.8,27.12464891]
[1754282140477,12.86388443,3556.9,3556.8,27.59744891]
[1754282141275,12.86388443,3556.9,3556.8,28.03934891]
[1754282150382,12.86388443,3556.9,3556.8,27.12464891]
[1754282150582,12.86388443,3556.9,3556.8,0.002]
[1754282151582,12.86388443,3556.9,3556.8,0.4748]
[1754282152680,12.86388443,3556.9,3556.8,0.002]
[1754282153455,12.86388443,3556.9,3556.8,0.4748]
[1754282155972,12.86388443,3556.9,3556.8,0.002]
[1754282158302,13.80118443,3556.9,3556.8,0.002]
[1754282159970,13.42728443,3556.9,3556.8,0.002]
[1754282160371,12.86088443,3556.7,3556.4,0.002]
[1754282160574,12.86088443,3556.5,3556.4,0.002]
[1754282161210,12.86088443,3556.5,3556.4,0.4672]
[1754282162304,12.86088443,3556.5,3556.4,0.002]
[1754282164776,13.65738443,3556.5,3556.4,0.002]
[1754282164970,12.86088443,3556.5,3556.4,0.002]
[1754282165212,12.85888443,3556.4,3556.0,0.002]
[1754282165509,12.85888443,3556.2,3556.1,0.4652]
[1754282165714,12.85888443,3556.2,3556.1,0.9199]
[1754282166609,12.85888443,3556.2,3556.1,0.4652]
[1754282168676,12.85888443,3556.2,3556.1,0.9199]
[1754282170201,12.85888443,3556.2,3556.1,3.7319694]
[1754282170409,12.85888443,3556.8,3556.2,3.0]
[1754282170605,0.001,3556.9,3556.2,3.0]
[1754282170606,12.85888443,3556.6,3556.5,21.31113295]
[1754282170832,17.20488443,3556.6,3556.5,21.31113295]
[1754282171019,12.85888443,3556.6,3556.5,22.23103295]
[1754282171214,4.345,3556.6,3556.5,22.23103295]
[1754282171415,12.85888443,3556.8,3556.5,22.23103295]
[1754282171648,17.20388443,3556.7,3556.6,0.9199]
[1754282172552,12.85888443,3556.8,3556.6,0.9199]
[1754282172756,17.20288443,3556.7,3556.6,0.4547]
[1754282173108,12.85888443,3556.8,3556.6,0.4547]
[1754282173407,12.85888443,3556.6,3556.5,24.1228792]
[1754282173711,12.85888443,3556.6,3556.5,21.31113295]
[1754282173914,12.85888443,3556.6,3556.5,22.23103295]
[1754282175041,12.85888443,3556.6,3556.5,25.04278607]
[1754282175343,12.85888443,3556.6,3556.5,22.23103295]
[1754282175722,4.341,3556.6,3556.5,25.04278607]
[1754282176032,17.19988443,3556.6,3556.5,25.04278607]
[1754282176328,17.19988443,3556.6,3556.5,22.23103295]
[1754282180321,17.19988443,3556.6,3556.5,21.31113295]
[1754282180541,12.85888443,3556.5,3556.2,3.0]
[1754282180844,12.85888443,3556.3,3556.2,3.0]
[1754282181341,12.85888443,3556.3,3556.2,5.81199032]
[1754282181513,12.85888443,3556.3,3556.2,6.27719032]
[1754282181714,12.85888443,3556.3,3556.2,6.73189032]
[1754282182649,12.85888443,3556.3,3556.2,24.84180255]
[1754282183149,12.85888443,3556.4,3556.3,2.81191125]
[1754282183444,17.19588443,3556.4,3556.3,3.27711125]
[1754282184318,17.19588443,3556.4,3556.3,3.73181125]
[1754282186852,12.85888443,3556.4,3556.3,6.73181125]
[1754282192148,12.85888443,3556.4,3556.3,11.06781125]
[1754282192322,12.85888443,3556.6,3556.5,2.81175312]
[1754282192642,17.19488443,3556.6,3556.5,21.83126535]
[1754282193358,17.19488443,3556.6,3556.5,19.01951223]
[1754282193919,17.19488443,3556.6,3556.5,18.57051223]
[1754282194159,17.19488443,3556.6,3556.5,18.10991223]
[1754282195531,12.85888443,3556.5,3556.4,18.10991223]
[1754282195736,13.65538443,3556.5,3556.4,21.10991223]
[1754282196044,13.65538443,3556.5,3556.0,22.44791223]
[1754282196045,12.85888443,3556.4,3556.0,22.44791223]
[1754282196246,12.99968443,3556.2,3556.0,18.11191223]
[1754282196426,17.19488443,3556.1,3556.0,18.11191223]
[1754282196628,17.19488443,3556.1,3556.0,0.002]
[1754282201959,12.85888443,3556.1,3556.0,0.4626]
[1754282202163,17.19488443,3556.1,3556.0,0.9116]
[1754282203764,17.19488443,3556.1,3556.0,0.002]
[1754282203937,17.19488443,3556.1,3556.0,0.4626]
[1754282206981,17.19488443,3556.1,3556.0,0.002]
[1754282208079,18.15764751,3556.1,3556.0,0.002]
[1754282208248,11.31720003,3554.9,3554.4,21.32196182]
[1754282208459,4.336,3555.0,3554.9,5.81301265]
[1754282208694,11.31720003,3555.0,3554.9,5.81301265]
[1754282208867,11.31720003,3555.0,3554.9,6.72261265]
[1754282209186,11.31720003,3555.0,3554.9,3.9096]
[1754282209364,11.31720003,3555.1,3554.9,3.93773018]
[1754282209543,11.31720003,3555.1,3555.0,0.4606]
[1754282209746,11.31720003,3555.1,3555.0,0.9096]
[1754282210148,4.336,3555.2,3555.0,0.9096]
[1754282210377,11.31720003,3555.1,3555.0,0.9096]
[1754282210579,11.31720003,3555.1,3554.9,7.336]
[1754282210876,11.31720003,3555.4,3554.9,7.336]
[1754282211080,4.336,3555.3,3555.0,0.02812939]
[1754282211252,11.31720003,3555.2,3555.0,0.9096]
[1754282211448,11.31720003,3555.2,3555.0,0.02812939]
[1754282211655,11.31720003,3555.4,3555.1,0.9096]
[1754282211954,11.31720003,3555.4,3555.2,0.9096]
[1754282211955,11.31720003,3555.3,3555.2,0.9096]
[1754282212175,11.31720003,3555.3,3555.0,2.81292758]
[1754282212375,11.31720003,3555.3,3555.0,4.10913007]
[1754282212777,11.31720003,3555.3,3555.1,0.9096]
[1754282213084,11.31720003,3555.3,3555.2,24.32196182]
[1754282213247,11.31720003,3555.3,3555.2,25.23156182]
[1754282218273,11.31720003,3555.3,3555.2,3.9096]
[1754282220494,11.31720003,3555.3,3555.2,6.72238127]
[1754282221291,11.31720003,3555.3,3555.2,3.9096]
[1754282221866,11.31720003,3555.3,3555.1,0.002]
[1754282222070,11.73980003,3555.3,3555.1,3.002]
[1754282222267,11.31720003,3555.2,3555.1,3.002]
[1754282222463,15.65320003,3555.2,3555.1,0.002]
[1754282223283,16.07580003,3555.2,3555.1,0.002]
[1754282223491,15.79400003,3555.2,3555.1,0.002]
[1754282224996,11.45800003,3555.2,3555.1,0.9339]
[1754282225170,15.79400003,3555.2,3555.1,3.74676039]
[1754282225369,15.79400003,3555.2,3555.1,0.9339]
[1754282225588,15.79400003,3555.2,3555.1,3.74676039]
[1754282225793,15.65320003,3555.2,3555.1,0.9339]
[1754282225959,15.65320003,3555.2,3555.1,3.30146039]
[1754282226157,15.65320003,3555.2,3555.1,0.4886]
[1754282226897,15.65320003,3555.2,3555.1,3.30146039]
[1754282227530,15.65320003,3555.2,3555.1,0.4886]
[1754282228198,15.65320003,3555.2,3555.1,3.30146039]
[1754282229392,15.65320003,3555.2,3555.1,3.74676039]
[1754282230793,15.65320003,3555.2,3555.1,3.30146039]
[1754282231803,15.65320003,3555.2,3555.1,3.74676039]
[1754282232615,17.23260003,3555.2,3555.1,0.002]
[1754282232800,10.32688303,3554.5,3554.0,0.1408]
[1754282233110,10.32688303,3554.4,3554.0,0.6274]
[1754282233324,10.32688303,3554.1,3554.0,4.335]
[1754282233690,10.32688303,3554.1,3553.9,0.1408]
[1754282233891,10.32688303,3554.1,3553.9,3.1408]
[1754282234186,10.32688303,3554.1,3553.9,0.1408]
[1754282234573,4.335,3554.3,3554.1,3.0]
[1754282234574,10.32688303,3554.3,3554.1,3.0]
[1754282234912,10.32688303,3554.3,3554.2,0.9319]
[1754282236411,10.32688303,3554.3,3554.1,3.0]
[1754282236581,10.32688303,3554.3,3554.2,0.4866]
[1754282236776,10.32688303,3554.3,3554.2,0.9319]
[1754282237810,10.32688303,3554.3,3554.1,7.335]
[1754282238013,10.32688303,3554.3,3554.1,8.2669]
[1754282238434,10.32688303,3554.3,3554.1,7.8216]
[1754282239005,10.32688303,3554.3,3554.1,8.2669]
[1754282239411,10.32688303,3554.3,3554.1,0.4866]
[1754282239631,10.32688303,3554.3,3554.1,4.8216]
[1754282239814,10.32688303,3553.9,3553.7,0.002]
[1754282239981,14.66188303,3553.8,3553.7,0.002]
[1754282240310,4.335,3553.8,3553.7,24.32396182]
[1754282240504,14.66188303,3553.8,3553.7,24.32396182]
[1754282240704,14.66188303,3553.8,3553.7,24.81056182]
[1754282241516,2.1294,3555.2,3553.8,3.0]
[1754282241517,10.32688303,3554.2,3553.8,3.0]
[1754282241815,10.32688303,3554.4,3554.1,0.002]
[1754282242138,10.32688303,3554.2,3554.1,0.4886]
[1754282242686,10.32688303,3554.2,3554.1,0.002]
[1754282243216,10.32688303,3554.2,3554.0,24.32196182]
[1754282243217,10.32488303,3554.1,3553.8,3.0]
[1754282243421,15.08248303,3554.1,3553.7,3.002]
[1754282243922,10.32488303,3553.9,3553.7,0.002]
[1754282244129,10.32488303,3553.9,3553.8,24.32196182]
[1754282244436,14.65988303,3553.9,3553.8,3.0]
[1754282244579,15.08248303,3553.9,3553.8,3.0]
[1754282245082,14.65988303,3553.9,3553.8,3.0]
[1754282245290,6.1546813,3553.1,3552.3,4.338]
[1754282245484,6.72444701,3553.9,3552.7,21.32196182]
[1754282245485,6.1546813,3552.8,3552.7,21.32196182]
[1754282246123,6.1546813,3552.8,3552.6,21.32196182]
[1754282246432,6.1546813,3552.7,3552.6,21.32196182]
[1754282246636,4.34,3552.7,3552.6,15.16728052]
[1754282246833,4.7626,3552.7,3552.6,15.16728052]
[1754282247033,4.7626,3552.7,3552.2,0.4866]
[1754282247034,5.27625,3552.7,3552.2,21.32196182]
[1754282247335,4.7626,3552.7,3552.1,21.32196182]
[1754282247523,4.7626,3552.7,3552.2,0.4866]
[1754282247832,4.7626,3552.7,3552.2,3.4866]
[1754282248038,0.4226,3552.6,3552.1,21.53587437]
[1754282248332,4.342,3552.5,3552.2,3.0]
[1754282248701,4.342,3552.5,3552.2,5.81514688]
[1754282248900,4.342,3552.5,3552.2,24.32196182]
[1754282249504,4.342,3552.5,3552.2,27.1371055]
[1754282249836,4.342,3552.5,3552.4,5.81499831]
[1754282251228,4.342,3552.5,3552.3,0.9469]
[1754282251229,4.342,3552.5,3552.3,3.0]
[1754282251432,4.342,3552.5,3552.0,3.76215183]
[1754282251433,4.342,3552.5,3552.0,3.0]
[1754282251618,4.342,3552.5,3552.2,5.81513641]
[1754282251805,4.342,3552.5,3552.2,3.0]
[1754282252006,0.1408,3552.3,3552.2,3.0]
[1754282252735,0.1408,3552.3,3552.2,6.3043568]
[1754282252922,0.1408,3552.3,3552.2,6.7620568]
[1754282253123,4.341,3552.4,3552.3,5.81504584]
[1754282253329,4.341,3552.4,3552.3,6.76194584]
[1754282254056,4.4818,3552.4,3552.3,3.9469]
[1754282254361,4.4818,3552.4,3552.3,3.4892]
[1754282254665,4.4818,3552.4,3552.3,3.0]
[1754282255847,4.4818,3552.4,3552.2,3.0]
[1754282256046,4.7636,3552.4,3552.2,3.0]
[1754282256347,0.1408,3552.3,3552.2,3.0]
[1754282257332,0.1408,3552.3,3552.2,3.4892]
[1754282259859,0.1408,3552.3,3552.2,3.0]
[1754282260021,0.1408,3552.3,3552.2,3.4892]
[1754282260357,0.1408,3552.3,3552.2,3.9469]
[1754282260560,0.1408,3552.3,3552.2,6.7620568]
[1754282260719,0.1408,3552.3,3552.2,3.9469]
[1754282260925,0.1408,3552.3,3552.2,6.3043568]
[1754282261753,0.1408,3552.3,3552.2,6.7620568]
[1754282266558,0.1408,3552.3,3552.2,3.4892]
[1754282266764,0.1408,3552.3,3552.2,6.3043568]
[1754282267226,0.47308704,3554.2,3552.7,2.81471339]
[1754282267427,5.16308287,3554.1,3552.6,3.0]
[1754282267627,0.1408,3552.9,3552.6,2.81477395]
[1754282267857,0.1408,3552.9,3552.3,2.8150226]
[1754282267858,0.4226,3552.9,3552.3,2.8150226]
[1754282268043,0.1408,3552.7,3552.6,3.0]
[1754282268247,0.1408,3552.7,3552.6,3.4892]
[1754282268656,0.1408,3552.7,3552.6,3.0]
[1754282268858,0.5634,3552.7,3552.3,3.0]
[1754282269071,0.1408,3552.5,3552.3,6.30427723]
[1754282269375,0.1408,3552.5,3552.3,3.0]
[1754282269848,0.1408,3552.5,3552.1,10.1532302]
[1754282270239,0.4226,3552.7,3552.2,0.4892]
[1754282270439,0.1408,3552.3,3552.2,0.4892]
[1754282270641,0.1408,3552.3,3552.1,10.61092861]
[1754282270995,0.1408,3552.3,3552.1,3.9469]
[1754282271207,0.1408,3552.3,3552.1,3.4892]
[1754282271952,0.1408,3552.3,3552.0,0.20804264]
[1754282272168,0.1408,3552.3,3552.0,3.69724264]
[1754282273082,0.1408,3552.3,3552.1,0.4892]
[1754282273581,0.1408,3552.3,3552.2,0.4892]
[1754282273764,0.1408,3552.3,3552.2,3.4892]
[1754282273963,0.1408,3552.3,3552.2,0.4892]
[1754282274173,0.1408,3552.3,3552.1,0.4577]
[1754282274349,0.1408,3552.3,3552.0,3.69724264]
[1754282274691,0.1408,3552.1,3552.0,3.66574264]
[1754282275277,0.1408,3552.1,3552.0,4.15494264]
[1754282276090,0.1408,3552.1,3552.0,6.97025795]